bitfinex/quotes_ETHUSD_20241104
["timestamp","ask_amount","ask_price","bid_price","bid_amount"]
[1730706236332,4.05845,2464.0,2463.8,0.06044487]
[1730706236533,4.05845,2464.0,2463.9,0.06021699]
[1730706236935,4.05845,2464.0,2463.7,0.55]
[1730706237163,4.05845,2464.0,2463.9,0.06021699]
[1730706237322,4.05845,2464.0,2463.8,0.06044487]
[1730706237522,4.05845,2464.0,2463.9,0.06021699]
[1730706237826,4.05845,2464.0,2463.7,0.55]
[1730706238027,4.05845,2464.0,2463.8,0.06044487]
[1730706238226,4.05845,2464.0,2463.7,0.55]
[1730706238427,4.05845,2464.0,2463.8,0.06044487]
[1730706238646,4.05845,2464.0,2463.7,0.55]
[1730706238835,4.05845,2464.0,2463.8,0.06044487]
[1730706239037,4.05845,2464.0,2463.7,0.55]
[1730706239242,4.05845,2464.0,2463.8,0.06044487]
[1730706239467,4.05845,2464.0,2463.6,0.55]
[1730706239680,4.05845,2464.0,2463.9,0.06021699]
[1730706239967,4.05845,2464.0,2463.6,4.60909]
[1730706240141,4.05845,2464.0,2463.9,0.06021699]
[1730706240471,4.0583,2464.1,2463.9,0.06021699]
[1730706240626,4.0583,2464.1,2463.7,4.93776788]
[1730706240831,4.0583,2464.1,2463.8,1.01513066]
[1730706241066,8.11667,2464.1,2463.8,1.01513066]
[1730706241368,4.0583,2464.1,2463.8,1.01513066]
[1730706241524,4.05813,2464.2,2463.9,0.55]
[1730706241865,4.05813,2464.2,2464.0,0.05998912]
[1730706242477,4.05827,2464.1,2464.0,0.05998912]
[1730706242824,4.05827,2464.1,2463.8,0.55]
[1730706243025,4.05827,2464.1,2463.9,0.06021699]
[1730706243267,4.05844,2464.0,2463.9,0.06021699]
[1730706243467,4.86254,2464.0,2463.9,0.06021699]
[1730706243668,5.754621,2464.0,2463.9,0.06021699]
[1730706243968,4.0587,2463.9,2463.5,4.14042412]
[1730706244830,4.0587,2463.9,2463.5,0.55]
[1730706245154,4.05878,2463.8,2463.6,0.06090071]
[1730706248776,4.05893,2463.7,2463.6,0.06090071]
[1730706249366,4.05893,2463.7,2463.3,0.55]
[1730706249531,4.05893,2463.7,2463.6,0.05481063]
[1730706249738,4.05912,2463.6,2463.3,0.55]
[1730706249962,4.84526,2463.7,2463.3,0.55]
[1730706250192,4.84526,2463.7,2463.3,4.60959]
[1730706250336,4.05912,2463.6,2463.3,0.55]
[1730706250836,4.84526,2463.7,2463.3,0.55]
[1730706251563,4.84526,2463.7,2463.3,4.60955]
[1730706252050,4.84526,2463.7,2463.3,5.55769]
[1730706256595,4.84526,2463.7,2463.3,1.49814]
[1730706256756,4.05916,2463.6,2463.3,1.49814]
[1730706256962,4.84526,2463.7,2463.3,1.49814]
[1730706260101,4.84526,2463.7,2463.4,0.0552682]
[1730706260865,4.05883,2463.8,2463.4,0.0552682]
[1730706261068,0.7863,2464.1,2463.5,4.8613]
[1730706261306,0.7863,2464.1,2463.6,0.14212636]
[1730706261307,4.05853,2464.0,2463.6,0.14212636]
[1730706261912,0.7863,2464.1,2463.6,0.14212636]
[1730706262111,4.05855,2464.0,2463.6,0.06095321]
[1730706262278,4.05869,2463.9,2463.6,0.06095321]
[1730706265015,4.05869,2463.9,2463.6,1.06386861]
[1730706265172,4.05844,2464.0,2463.7,0.8096]
[1730706265369,4.05844,2464.0,2463.8,0.06052813]
[1730706265570,4.05844,2464.0,2463.7,0.8096]
[1730706265898,4.05844,2464.0,2463.8,0.06052813]
[1730706266316,4.05844,2464.0,2463.7,0.8096]
[1730706266512,4.05844,2464.0,2463.9,0.06030024]
[1730706266692,4.05844,2464.0,2463.8,0.06052813]
[1730706267015,4.05844,2464.0,2463.7,0.8096]
[1730706267016,4.05844,2464.0,2463.9,0.06030024]
[1730706267215,4.05844,2464.0,2463.7,0.8096]
[1730706267510,4.05844,2464.0,2463.8,0.06052813]
[1730706267879,4.05844,2464.0,2463.7,1.296468]
[1730706268079,4.05844,2464.0,2463.8,0.06052813]
[1730706268280,4.05844,2464.0,2463.7,1.296468]
[1730706268510,4.05844,2464.0,2463.8,0.06052813]
[1730706269046,4.05844,2464.0,2463.9,0.06030024]
[1730706269261,4.05844,2464.0,2463.7,0.8096]
[1730706269420,4.05844,2464.0,2463.8,0.06052813]
[1730706269742,4.05844,2464.0,2463.7,1.296468]
[1730706269931,4.05844,2464.0,2463.9,0.06030024]
[1730706270131,4.05844,2464.0,2463.8,0.06052813]
[1730706270445,4.05844,2464.0,2463.9,0.06030024]
[1730706270645,4.05822,2464.2,2463.7,0.8096]
[1730706270844,4.05811,2464.2,2463.8,0.06052813]
[1730706271043,4.0584,2464.1,2463.7,1.702369]
[1730706271234,4.0584,2464.1,2463.8,0.06052813]
[1730706271434,4.0584,2464.1,2463.7,1.702369]
[1730706271638,4.0584,2464.1,2463.8,0.06050419]
[1730706271816,4.0584,2464.1,2463.7,1.702369]
[1730706272149,4.0584,2464.1,2463.8,0.06050419]
[1730706272648,4.0584,2464.1,2463.7,0.8096]
[1730706272649,4.0584,2464.1,2463.9,0.0602763]
[1730706272949,4.0584,2464.1,2463.7,0.8096]
[1730706273149,4.0584,2464.1,2464.0,0.06004843]
[1730706273741,4.0584,2464.1,2463.7,0.8096]
[1730706273901,4.0584,2464.1,2464.0,0.06004843]
[1730706274103,4.0584,2464.1,2463.7,0.8096]
[1730706274336,4.0585,2464.0,2463.7,0.98385646]
[1730706274500,4.0585,2464.0,2463.7,0.8096]
[1730706274715,4.0585,2464.0,2463.7,0.98385779]
[1730706274919,4.0585,2464.0,2463.7,0.8096]
[1730706275242,4.0585,2464.0,2463.8,0.06050419]
[1730706275419,4.0585,2464.0,2463.7,0.8096]
[1730706275742,4.0585,2464.0,2463.8,0.06050419]
[1730706276138,4.0585,2464.0,2463.7,1.702392]
[1730706276455,4.0585,2464.0,2463.8,0.06050419]
[1730706276652,4.0585,2464.0,2463.6,1.02863494]
[1730706276653,4.0586,2463.9,2463.6,1.02863494]
[1730706276956,4.0586,2463.9,2463.7,0.06073209]
[1730706283952,6.48767147,2464.0,2463.7,0.06073209]
[1730706284444,5.72190147,2463.8,2463.7,0.06073209]
[1730706284628,5.72190147,2463.8,2463.4,0.8082]
[1730706284821,4.05917,2463.6,2463.5,0.05506916]
[1730706285446,1.66313147,2463.8,2463.5,0.05506916]
[1730706285664,4.85776,2463.7,2463.5,0.05506916]
[1730706285873,4.85776,2463.7,2463.1,4.87802]
[1730706286166,4.85776,2463.7,2463.3,0.55]
[1730706286537,4.85776,2463.7,2463.4,0.05527947]
[1730706288956,4.05879,2463.8,2463.4,0.86347947]
[1730706289838,4.05893,2463.7,2463.4,0.86347947]
[1730706290379,4.85743,2463.9,2463.5,0.63117965]
[1730706290573,4.05846,2464.0,2463.5,4.69037965]
[1730706290863,4.05869,2463.9,2463.6,0.06098169]
[1730706291640,4.05846,2464.0,2463.6,0.06098169]
[1730706291835,8.11703,2464.0,2463.6,0.06098169]
[1730706292072,4.05846,2464.0,2463.6,0.06098169]
[1730706292274,8.11701,2464.0,2463.6,0.06098169]
[1730706292442,4.05846,2464.0,2463.7,0.8082]
[1730706292641,4.05846,2464.0,2463.8,0.06051103]
[1730706292883,4.05846,2464.0,2463.7,0.8082]
[1730706293045,4.05846,2464.0,2463.8,0.06051103]
[1730706293443,4.05846,2464.0,2463.7,0.8082]
[1730706293682,4.05846,2464.0,2463.8,0.06051103]
[1730706293863,4.05846,2464.0,2463.7,0.8082]
[1730706294182,4.05846,2464.0,2463.8,0.06051103]
[1730706294683,4.05846,2464.0,2463.9,0.06028315]
[1730706294885,4.05846,2464.0,2463.7,0.8082]
[1730706295187,8.11703,2464.0,2463.8,0.06051103]
[1730706295683,4.0585,2464.0,2463.9,0.06028315]
[1730706295988,4.05852,2464.0,2463.8,0.55]
[1730706296140,4.05852,2464.0,2463.9,0.06028087]
[1730706300600,4.81422,2464.0,2463.9,0.06028087]
[1730706300891,5.86778315,2464.0,2463.9,0.06028087]
[1730706301050,4.05867,2463.9,2463.6,0.55]
[1730706302295,4.05864,2463.9,2463.6,0.55]
[1730706302666,8.11735,2463.9,2463.6,0.55]
[1730706303368,4.05864,2463.9,2463.6,0.55]
[1730706303873,8.11733,2463.9,2463.6,0.55]
[1730706304056,4.05864,2463.9,2463.6,0.55]
[1730706304671,4.05864,2463.9,2463.5,0.7556]
[1730706304672,4.05887,2463.8,2463.5,0.7556]
[1730706305190,4.05887,2463.8,2463.6,0.06096459]
[1730706306893,4.8143,2464.0,2463.6,0.06096459]
[1730706307095,4.05861,2463.9,2463.6,0.06096459]
[1730706307596,4.8143,2464.0,2463.6,0.06096459]
[1730706307822,4.0586,2463.9,2463.6,0.06096459]
[1730706308179,4.0588,2463.8,2463.6,0.06096459]
[1730706308905,4.0586,2463.9,2463.6,0.06096459]
[1730706310905,4.05878,2463.8,2463.6,0.06096459]
[1730706311803,4.05878,2463.8,2463.5,0.55]
[1730706312108,6.47740147,2464.0,2463.7,0.06072983]
[1730706312319,4.05864,2463.9,2463.8,0.06050192]
[1730706312605,4.05864,2463.9,2463.5,0.55]
[1730706312777,4.05864,2463.9,2463.8,0.06050192]
[1730706312981,4.05864,2463.9,2463.6,0.17429124]
[1730706313165,4.05864,2463.9,2463.8,0.06050192]
[1730706313370,4.05864,2463.9,2463.6,0.17429124]
[1730706313566,4.05864,2463.9,2463.8,0.06050192]
[1730706313813,4.05864,2463.9,2463.6,0.17429124]
[1730706313995,4.05864,2463.9,2463.8,0.06050192]
[1730706314211,4.05864,2463.9,2463.7,0.06072983]
[1730706314413,4.05864,2463.9,2463.8,0.06050192]
[1730706314722,4.05864,2463.9,2463.6,0.17429124]
[1730706314879,4.05864,2463.9,2463.7,0.06072983]
[1730706316128,4.05877,2463.8,2463.7,0.06072983]
[1730706316928,5.11239415,2463.8,2463.7,0.06072983]
[1730706317930,5.11239415,2463.8,2463.6,0.17429124]
[1730706318228,4.05893,2463.7,2463.6,0.17429124]
[1730706319735,4.86943,2463.7,2463.6,0.17429124]
[1730706320502,4.86943,2463.7,2463.3,0.55]
[1730706320709,4.05927,2463.5,2463.2,0.55]
[1730706321017,8.11869,2463.5,2463.2,0.55]
[1730706321219,4.05927,2463.5,2463.2,0.55]
[1730706321415,4.05975,2463.2,2462.9,1.11016105]
[1730706321641,8.92979,2463.3,2463.0,0.30444845]
[1730706321977,8.92979,2463.3,2463.0,0.0592771]
[1730706321978,4.87009,2463.3,2463.0,0.0592771]
[1730706322142,4.05992,2463.1,2463.0,0.0592771]
[1730706322315,4.05992,2463.1,2462.8,0.47865443]
[1730706322523,4.06011,2463.0,2462.9,0.05950516]
[1730706323246,4.05992,2463.1,2462.9,0.05950516]
[1730706323549,4.06008,2463.0,2462.7,0.3661764]
[1730706323739,4.06008,2463.0,2462.8,0.06719988]
[1730706323913,4.06008,2463.0,2462.7,0.36606123]
[1730706324108,4.06008,2463.0,2462.8,0.06719988]
[1730706324311,4.05992,2463.1,2462.7,0.36606127]
[1730706324549,4.06025,2462.9,2462.8,0.06719988]
[1730706324749,4.06025,2462.9,2462.7,0.0617416]
[1730706324958,4.06011,2463.0,2462.8,0.06719988]
[1730706325248,4.06011,2463.0,2462.7,0.0617416]
[1730706325249,8.1203,2463.0,2462.7,0.0617416]
[1730706325448,8.1203,2463.0,2462.9,0.0669433]
[1730706325658,4.06011,2463.0,2462.8,0.06719988]
[1730706325838,4.06011,2463.0,2462.9,0.0669433]
[1730706326216,4.06011,2463.0,2462.7,0.0617416]
[1730706326549,4.06011,2463.0,2462.9,0.0669433]
[1730706326757,4.06011,2463.0,2462.7,0.0617416]
[1730706326925,4.05988,2463.2,2462.9,0.7717]
[1730706327135,1.66313147,2463.4,2463.0,0.06668674]
[1730706327355,4.81702,2463.1,2463.0,0.06668674]
[1730706327560,1.97740429,2463.1,2462.7,0.0617416]
[1730706327867,5.72344147,2462.9,2462.8,0.0672672]
[1730706328151,5.72344147,2462.9,2462.7,0.0617416]
[1730706328356,5.72346147,2462.9,2462.8,0.0672672]
[1730706328556,5.72346147,2462.9,2462.7,0.0617416]
[1730706328917,5.72346147,2462.9,2462.8,0.0672672]
[1730706329142,2.83923005,2462.9,2462.7,0.0617416]
[1730706329342,7.81751,2462.8,2462.7,0.0617416]
[1730706332045,4.81751,2462.8,2462.7,0.0617416]
[1730706332481,4.81751,2462.8,2462.7,0.1159487]
[1730706332693,4.81751,2462.8,2462.7,0.0617416]
[1730706332983,5.98921101,2462.8,2462.7,0.0617416]
[1730706333891,8.98921101,2462.8,2462.7,0.0617416]
[1730706334768,16.23604409,2462.8,2462.7,1.6e-06]
[1730706335098,8.12399,2461.9,2461.5,0.7717]
[1730706335300,4.06214,2461.8,2461.5,0.7717]
[1730706335452,4.06214,2461.8,2461.6,0.05975596]
[1730706335891,4.8189,2462.0,2461.6,0.05975596]
[1730706336160,4.06192,2461.9,2461.7,0.05952767]
[1730706336704,4.8189,2462.0,2461.4,4.1244408]
[1730706336863,0.7571,2462.0,2461.8,0.05929939]
[1730706337215,3.86841669,2462.1,2461.9,0.05907113]
[1730706337361,4.81863,2462.2,2461.9,0.05907113]
[1730706337760,10.92960669,2462.4,2461.9,4.12093113]
[1730706337761,4.81829,2462.4,2461.9,4.12093113]
[1730706337970,4.06142,2462.2,2461.8,4.06205]
[1730706338170,4.06142,2462.2,2461.9,0.05907113]
[1730706338810,0.8277,2461.9,2461.4,0.0617408]
[1730706339105,8.75867669,2461.5,2461.4,0.0617408]
[1730706339304,0.8277,2460.8,2460.5,0.42413212]
[1730706339608,4.06357,2460.9,2460.3,4.06454]
[1730706339765,7.89093,2461.1,2460.4,4.88344908]
[1730706340097,3.86841669,2460.9,2460.4,0.81908908]
[1730706340300,7.0638,2460.8,2460.2,4.1263508]
[1730706340503,8.75979669,2460.9,2460.3,4.85744]
[1730706340719,8.75974669,2460.9,2460.3,4.85744]
[1730706341007,8.75974669,2460.9,2460.3,0.7929]
[1730706341311,4.06418,2460.6,2460.3,0.7929]
[1730706341465,4.06422,2460.5,2460.2,0.0617408]
[1730706341960,4.06438,2460.4,2460.2,0.0617408]
[1730706342307,4.89224,2460.3,2460.2,0.0617408]
[1730706342607,0.8277,2460.3,2460.2,0.0617408]
[1730706342767,4.0644,2460.4,2460.2,0.0617408]
[1730706343404,4.06454,2460.3,2460.2,0.0617408]
[1730706343898,4.0644,2460.4,2460.2,0.0617408]
[1730706344524,4.06424,2460.5,2460.2,0.0617408]
[1730706345180,4.06439,2460.4,2460.2,0.0617408]
[1730706345375,4.06445,2460.4,2460.2,0.0617408]
[1730706345880,4.06424,2460.5,2460.2,0.0617408]
[1730706346216,0.8277,2460.6,2460.2,0.0617408]
[1730706346412,4.06431,2460.5,2460.2,0.0617408]
[1730706346581,4.06431,2460.5,2460.3,0.06687423]
[1730706346914,4.064,2460.7,2460.2,4.1264308]
[1730706347115,4.064,2460.7,2460.4,0.06661713]
[1730706347315,4.064,2460.7,2460.2,8.1911208]
[1730706347316,5.259538,2460.7,2460.3,0.06687423]
[1730706347481,5.259538,2460.7,2460.4,0.06661713]
[1730706347677,11.95507,2460.9,2460.4,0.06661713]
[1730706347878,4.06377,2460.8,2460.3,4.06444]
[1730706348220,4.06377,2460.8,2460.4,0.06661713]
[1730706348727,3.86841669,2461.0,2460.5,4.0642]
[1730706348728,3.0,2461.0,2460.5,4.0642]
[1730706348878,4.06359,2460.9,2460.5,4.0642]
[1730706349080,7.06341,2461.0,2460.5,4.0642]
[1730706349273,7.89089,2461.2,2460.5,4.0642]
[1730706349516,4.06346,2461.0,2460.5,4.13077911]
[1730706349729,4.06322,2461.1,2460.6,4.06403]
[1730706350018,8.12655,2461.1,2460.5,4.85703]
[1730706350326,0.8277,2461.2,2460.6,4.06403]
[1730706350478,2.40724601,2461.3,2461.1,4.0631]
[1730706350803,4.06302,2461.3,2460.8,4.61364]
[1730706351005,4.06302,2461.3,2460.9,0.947041]
[1730706351505,4.06302,2461.3,2460.8,4.61364]
[1730706351707,4.06306,2461.2,2460.8,4.61364]
[1730706351876,4.06302,2461.3,2460.9,4.06355]
[1730706353285,4.0635,2461.0,2460.6,0.55]
[1730706353689,4.06347,2461.0,2460.6,0.55]
[1730706354092,4.06356,2460.9,2460.4,4.85716]
[1730706354498,4.06356,2460.9,2460.5,0.06657911]
[1730706354692,4.876134,2461.0,2460.5,0.06657911]
[1730706354693,8.939614,2461.0,2460.5,0.06657911]
[1730706355459,4.876134,2461.0,2460.5,4.13077911]
[1730706355586,4.06347,2461.0,2460.5,4.13077911]
[1730706355921,4.89036,2461.5,2460.5,4.13077911]
[1730706356221,4.06346,2461.0,2460.5,4.13067911]
[1730706356419,8.12632,2461.2,2460.7,4.06387]
[1730706356783,4.06316,2461.2,2460.8,4.0637]
[1730706356984,8.12633,2461.2,2460.7,4.06387]
[1730706357183,4.06323,2461.1,2460.7,4.06387]
[1730706358018,4.06306,2461.2,2460.7,8.12764]
[1730706358180,4.06306,2461.2,2460.8,4.06369]
[1730706358385,0.8277,2461.5,2460.7,4.876534]
[1730706358386,4.06291,2461.3,2460.9,4.85644]
[1730706358820,4.69920469,2461.4,2460.9,8.91989]
[1730706359121,4.69920469,2461.4,2461.0,4.06337]
[1730706359627,4.06288,2461.4,2461.0,4.06337]
[1730706359998,0.8277,2461.5,2461.0,4.06337]
[1730706359999,4.06258,2461.5,2461.0,4.06338]
[1730706360385,4.06258,2461.5,2460.9,0.7929]
[1730706360631,4.06258,2461.5,2461.0,4.0633]
[1730706360925,4.06241,2461.6,2461.1,4.06311]
[1730706361230,4.06239,2461.6,2461.0,0.891972]
[1730706361399,4.06253,2461.6,2461.0,0.55]
[1730706361721,4.06266,2461.5,2461.1,4.0632]
[1730706362590,4.06265,2461.5,2461.0,4.61337]
[1730706362793,4.06289,2461.3,2461.0,0.55]
[1730706363038,4.06306,2461.2,2460.9,0.7929]
[1730706363867,4.06289,2461.3,2460.9,0.7929]
[1730706366158,4.06289,2461.3,2460.9,4.85643]
[1730706369282,4.06271,2461.5,2460.9,4.85643]
[1730706369485,4.06292,2461.3,2460.9,4.85634]
[1730706370761,4.06275,2461.4,2460.9,4.85634]
[1730706370990,0.5526686,2461.5,2460.9,4.85634]
[1730706371161,4.06264,2461.5,2461.0,4.06329]
[1730706371600,4.0624,2461.6,2461.2,4.06305]
[1730706372059,4.06257,2461.5,2461.1,4.06308]
[1730706372260,0.63627602,2461.7,2461.4,4.06257]
[1730706372513,4.06169,2462.1,2461.5,5.37631]
[1730706372662,4.06169,2462.1,2461.7,4.06215]
[1730706373018,4.06169,2462.1,2461.7,4.06216]
[1730706373019,4.06157,2462.1,2461.7,4.06216]
[1730706373366,0.63615115,2462.2,2461.8,4.06205]
[1730706373561,0.63615115,2462.2,2461.8,4.06194]
[1730706373869,4.061,2462.5,2461.9,0.7638]
[1730706374209,4.54297,2462.4,2462.0,4.06173]
[1730706374414,4.54297,2462.4,2461.9,0.7638]
[1730706375273,4.06138,2462.3,2461.9,0.7638]
[1730706375682,8.60415,2462.4,2461.9,4.8256]
[1730706376027,3.0,2462.7,2462.1,4.06154]
[1730706376308,4.06054,2462.8,2462.4,0.7638]
[1730706376510,8.12105,2462.8,2462.4,0.7638]
[1730706376809,9.008795,2462.8,2462.4,0.7638]
[1730706377018,4.06071,2462.7,2462.4,0.7638]
[1730706377174,4.06082,2462.6,2462.4,0.7638]
[1730706377809,4.06082,2462.6,2462.2,1.3138]
[1730706378241,4.06093,2462.5,2462.2,0.7638]
[1730706378438,4.06093,2462.5,2461.4,0.7638]
[1730706378439,4.06173,2462.0,2461.4,0.7638]
[1730706378645,4.06224,2461.7,2461.4,0.7638]
[1730706378796,4.06248,2461.6,2461.4,0.7638]
[1730706379002,4.06224,2461.7,2461.4,0.7638]
[1730706379438,4.06224,2461.7,2461.0,4.82709]
[1730706379439,4.06264,2461.5,2461.0,4.82709]
[1730706379733,4.06244,2461.6,2461.2,4.06303]
[1730706379896,4.06244,2461.6,2461.2,4.06296]
[1730706380511,4.06256,2461.5,2461.1,4.06321]
[1730706380719,4.874759,2461.7,2461.2,4.06303]
[1730706380918,4.06244,2461.6,2461.2,0.55]
[1730706382008,4.874759,2461.7,2461.2,0.55]
[1730706382204,4.06239,2461.6,2461.2,0.55]
[1730706382604,4.06239,2461.6,2461.2,4.61305]
[1730706382838,4.06226,2461.7,2461.2,4.61304]
[1730706383024,4.0624,2461.6,2461.2,4.61304]
[1730706383443,4.06209,2461.8,2461.3,4.06279]
[1730706383831,4.06232,2461.7,2461.2,4.61304]
[1730706384309,4.06201,2461.9,2461.3,4.06277]
[1730706384512,4.06214,2461.8,2461.4,0.8015]
[1730706384708,4.06224,2461.7,2461.4,0.8015]
[1730706384953,8.12457,2461.7,2461.4,0.8015]
[1730706385444,8.937027,2461.7,2461.2,5.41454]
[1730706385955,4.06241,2461.6,2461.2,5.41454]
[1730706387542,0.812457,2461.7,2461.3,4.06281]
[1730706387749,4.06209,2461.8,2461.4,4.06271]
[1730706387909,4.06227,2461.7,2461.2,5.41454]
[1730706388112,4.06246,2461.6,2461.2,5.41454]
[1730706388947,4.06227,2461.7,2460.1,4.06479]
[1730706388948,4.06289,2461.3,2460.8,0.8015]
[1730706389119,4.06306,2461.2,2460.8,4.86506]
[1730706390131,4.06289,2461.3,2460.9,4.61353]
[1730706390132,4.06291,2461.3,2460.9,4.61353]
[1730706390344,4.06282,2461.4,2460.9,4.61346]
[1730706391222,4.0629,2461.3,2460.9,4.61346]
[1730706391626,4.06265,2461.5,2460.9,8.67693]
[1730706391866,4.06291,2461.3,2460.9,4.61346]
[1730706392320,4.06275,2461.4,2460.9,4.61346]
[1730706392520,4.06297,2461.3,2460.9,4.61346]
[1730706392849,4.06275,2461.4,2461.0,4.06338]
[1730706393588,0.406227,2461.6,2460.9,5.561393]
[1730706393754,4.06272,2461.4,2460.9,4.61352]
[1730706394087,4.06298,2461.3,2460.9,4.61352]
[1730706394448,4.06298,2461.3,2460.9,8.67698]
[1730706394653,4.06274,2461.4,2460.9,8.67698]
[1730706395186,4.06274,2461.4,2460.9,4.61346]
[1730706395356,4.06274,2461.4,2460.9,8.67693]
[1730706395551,4.06274,2461.4,2460.9,4.61346]
[1730706395890,4.06274,2461.4,2460.9,8.67693]
[1730706396089,4.06274,2461.4,2460.9,4.61346]
[1730706396289,0.406227,2461.6,2461.0,4.06325]
[1730706396445,4.06258,2461.5,2461.0,0.08125895]
[1730706396648,4.06274,2461.4,2461.0,4.06336]
[1730706396956,0.406227,2461.6,2461.2,0.8015]
[1730706396957,4.06251,2461.6,2461.2,0.8015]
[1730706397461,4.06259,2461.5,2461.2,0.8015]
[1730706397663,4.06273,2461.4,2461.2,0.8015]
[1730706398676,4.06253,2461.6,2461.2,0.8015]
[1730706399061,4.06268,2461.5,2461.2,0.8015]
[1730706399294,4.06274,2461.4,2461.2,0.8015]
[1730706400276,4.06274,2461.4,2461.1,0.55]
[1730706403807,4.06268,2461.5,2461.1,4.6132]
[1730706403991,4.06274,2461.4,2461.1,0.55]
[1730706405973,3.63620323,2462.0,2461.3,0.55]
[1730706405974,0.7778,2461.9,2461.3,0.55]
[1730706406316,4.06254,2461.6,2461.3,0.55]
[1730706407312,8.12506,2461.6,2461.3,0.55]
[1730706407613,4.06257,2461.5,2461.3,0.55]
[1730706407968,7.69797323,2462.0,2461.4,0.7724]
[1730706407969,4.06232,2461.7,2461.4,0.7724]
[1730706408192,4.06211,2461.8,2461.4,0.7724]
[1730706408510,4.06211,2461.8,2461.4,4.83501]
[1730706408705,4.06211,2461.8,2461.5,0.55]
[1730706409113,4.69796323,2462.0,2461.6,4.06232]
[1730706409315,4.06176,2462.0,2461.6,4.06232]
[1730706410187,4.06176,2462.0,2461.5,9.619763]
[1730706410188,4.06181,2462.0,2461.5,9.619763]
[1730706410383,8.12366,2462.0,2461.5,5.557223]
[1730706410589,4.06181,2462.0,2461.6,0.6329623]
[1730706410930,4.06159,2462.1,2461.8,0.7724]
[1730706411930,0.7778,2462.3,2461.8,0.7724]
[1730706412097,4.06181,2462.0,2461.8,0.7724]
[1730706414494,4.0619,2461.9,2461.4,4.83506]
[1730706414702,4.06212,2461.8,2461.5,0.55]
[1730706415018,4.06209,2461.8,2461.5,0.55]
[1730706417247,4.06251,2461.6,2461.2,4.06292]
[1730706417535,4.06281,2461.4,2461.0,4.8357]
[1730706417747,0.7778,2461.7,2461.0,4.8357]
[1730706417748,4.06319,2461.2,2461.0,0.7724]
[1730706418040,4.06239,2461.6,2460.5,0.01]
[1730706418041,4.0634,2461.0,2460.8,0.7724]
[1730706418248,4.0634,2461.0,2460.3,0.86084958]
[1730706418249,0.812662,2461.0,2460.4,0.7724]
[1730706418403,4.06388,2460.7,2460.4,0.7724]
[1730706418742,4.84144,2460.9,2460.4,0.7724]
[1730706418743,4.06374,2460.8,2460.4,0.7724]
[1730706419706,4.06374,2460.8,2460.5,0.55]
[1730706421326,4.84144,2460.9,2460.4,0.7724]
[1730706421327,4.06404,2460.6,2460.4,0.7724]
[1730706421647,4.06398,2460.7,2460.4,0.7724]
[1730706422350,4.06406,2460.6,2460.4,0.7724]
[1730706422500,4.06398,2460.7,2460.4,0.7724]
[1730706423119,8.12801,2460.7,2460.4,0.7724]
[1730706423558,4.06409,2460.6,2460.4,0.7724]
[1730706423783,4.06409,2460.6,2460.3,0.55]
[1730706424287,4.06432,2460.5,2460.3,0.55]
[1730706425549,4.06454,2460.3,2460.2,0.0617408]
[1730706426587,4.06413,2460.6,2460.2,0.0617408]
[1730706426751,4.06413,2460.6,2460.2,4.1264408]
[1730706426966,4.06413,2460.6,2460.3,0.7724]
[1730706428486,4.84164,2460.8,2460.3,4.83693]
[1730706428790,8.90544,2460.8,2460.3,4.83693]
[1730706428976,4.06396,2460.7,2460.3,0.7724]
[1730706429173,4.8416,2460.8,2460.3,4.8369]
[1730706429378,4.0638,2460.8,2460.3,4.8369]
[1730706429578,8.1276,2460.8,2460.3,4.8369]
[1730706429765,4.06398,2460.7,2460.3,0.7724]
[1730706431504,4.06398,2460.7,2460.3,4.8369]
[1730706432805,4.06383,2460.8,2460.4,0.55]
[1730706432979,4.06372,2460.8,2460.4,0.55]
[1730706434408,4.06372,2460.8,2460.4,4.61435]
[1730706434609,4.06372,2460.8,2460.4,0.55]
[1730706436483,4.06372,2460.8,2460.4,4.61434]
[1730706437811,4.06394,2460.7,2460.4,0.55]
[1730706438921,4.06355,2460.9,2460.5,4.06414]
[1730706439085,4.06355,2460.9,2460.4,4.61437]
[1730706439284,4.06372,2460.8,2460.4,4.61437]
[1730706439784,4.06355,2460.9,2460.4,8.67865]
[1730706440028,4.06373,2460.8,2460.4,4.61428]
[1730706440181,4.06358,2460.9,2460.5,4.06421]
[1730706440380,4.06339,2461.0,2460.6,4.06404]
[1730706440705,4.06339,2461.0,2460.7,0.8002]
[1730706441295,0.7663,2461.2,2460.7,4.86397]
[1730706441612,3.11958365,2461.8,2461.0,0.55]
[1730706441613,0.7663,2461.7,2461.0,0.55]
[1730706441825,4.06296,2461.3,2461.0,0.55]
[1730706442031,4.06294,2461.3,2461.0,0.55]
[1730706442190,4.06297,2461.3,2460.9,0.8002]
[1730706442400,4.0635,2461.0,2460.7,0.8002]
[1730706442717,4.06356,2460.9,2460.7,0.8002]
[1730706443306,4.06392,2460.7,2460.5,0.8002]
[1730706443502,4.06382,2460.8,2460.5,0.8002]
[1730706443691,4.06414,2460.6,2460.3,0.8002]
[1730706444501,4.06423,2460.5,2460.3,0.8002]
[1730706445760,4.06423,2460.5,2460.2,0.0617408]
[1730706445904,0.8249,2460.7,2460.2,4.1263808]
[1730706446113,4.06376,2460.8,2460.2,4.62564806]
[1730706446320,4.06395,2460.7,2460.3,4.06447]
[1730706447404,4.06415,2460.6,2460.3,0.55]
[1730706447821,4.06415,2460.6,2460.2,0.0617408]
[1730706447822,4.06425,2460.5,2460.2,0.0617408]
[1730706449619,4.06454,2460.3,2460.2,0.0617408]
[1730706449805,7.88944,2460.3,2460.2,0.0617408]
[1730706452849,4.06437,2460.4,2460.2,0.0617408]
[1730706453145,4.06454,2460.3,2460.2,0.0617408]
[1730706453649,4.06432,2460.5,2460.2,0.0617408]
[1730706454244,4.06428,2460.5,2460.2,0.0617408]